[Event "*** Titled Tuesday Blitz AM"]
[Site "Chess.com"]
[Date "2020.01.07"]
[Round "6"]
[White "TigrVShlyape"]
[Black "Sashadav97"]
[Result "1-0"]
[WhiteElo "2818"]
[BlackElo "2559"]
[TimeControl "180+2"]
[EndTime "10:19:53 PST"]
[Termination "TigrVShlyape won by resignation"]

1. d4 {[%clk 0:03:01.9]} 1... d5 {[%clk 0:02:54.5]} 2. Nf3 {[%clk 0:03:02.1]}
2... Nf6 {[%clk 0:02:53.1]} 3. Bf4 {[%clk 0:03:02.5]} 3... e6 {[%clk 0:02:51.6]}
4. e3 {[%clk 0:03:03.3]} 4... Bd6 {[%clk 0:02:52.1]} 5. Bg3 {[%clk 0:03:02]}
5... c5 {[%clk 0:02:46.4]} 6. c4 {[%clk 0:03:01.9]} 6... cxd4 {[%clk 0:02:42.1]}
7. exd4 {[%clk 0:02:56.7]} 7... Bxg3 {[%clk 0:02:40.2]} 8. hxg3 {[%clk
0:02:57.2]} 8... dxc4 {[%clk 0:02:41.8]} 9. Bxc4 {[%clk 0:02:57.1]} 9... Nc6
{[%clk 0:02:42.4]} 10. Nc3 {[%clk 0:02:57.4]} 10... h6 {[%clk 0:02:41.3]} 11.
O-O {[%clk 0:02:52.1]} 11... O-O {[%clk 0:02:40.9]} 12. a3 {[%clk 0:02:52]}
12... Ne7 {[%clk 0:02:38.1]} 13. Qe2 {[%clk 0:02:48.9]} 13... b6 {[%clk
0:02:35.7]} 14. Rad1 {[%clk 0:02:48.8]} 14... Bb7 {[%clk 0:02:36.5]} 15. Ne5
{[%clk 0:02:49.5]} 15... Rc8 {[%clk 0:02:35.2]} 16. Rfe1 {[%clk 0:02:39]} 16...
Ned5 {[%clk 0:02:28.6]} 17. Qd3 {[%clk 0:02:15.6]} 17... Qc7 {[%clk 0:02:23.2]}
18. Nb5 {[%clk 0:02:13]} 18... Qb8 {[%clk 0:02:19.7]} 19. Ba2 {[%clk 0:02:10.2]}
19... Ba6 {[%clk 0:02:08.6]} 20. Bb1 {[%clk 0:02:09.8]} 20... Qb7 {[%clk
0:01:55.2]} 21. Qb3 {[%clk 0:02:05.3]} 21... Qe7 {[%clk 0:01:45.6]} 22. Nc3
{[%clk 0:02:02.2]} 22... Bb7 {[%clk 0:01:35.2]} 23. Ne2 {[%clk 0:01:33.6]} 23...
Rfd8 {[%clk 0:01:27.3]} 24. g4 {[%clk 0:01:34.2]} 24... Nd7 {[%clk 0:00:54.4]}
25. Nf3 {[%clk 0:01:14.6]} 25... Nf8 {[%clk 0:00:45.1]} 26. Ng3 {[%clk
0:01:11.2]} 26... Qc7 {[%clk 0:00:39.3]} 27. Ne5 {[%clk 0:01:07.3]} 27... Nf6
{[%clk 0:00:31.4]} 28. f4 {[%clk 0:00:57.2]} 28... Bd5 {[%clk 0:00:29.5]} 29.
Qd3 {[%clk 0:00:56.8]} 29... N6d7 {[%clk 0:00:29.6]} 30. g5 {[%clk 0:00:45.3]}
30... Nxe5 {[%clk 0:00:25]} 31. Rxe5 {[%clk 0:00:43.5]} 31... Bc4 {[%clk
0:00:15.1]} 32. Qf3 {[%clk 0:00:36.3]} 32... hxg5 {[%clk 0:00:15.1]} 33. Rxg5
{[%clk 0:00:32.2]} 33... f6 {[%clk 0:00:15.5]} 34. Rg4 {[%clk 0:00:31.9]} 34...
Bd5 {[%clk 0:00:16.2]} 35. Qd3 {[%clk 0:00:31.8]} 35... Qc4 {[%clk 0:00:17.3]}
36. Qd2 {[%clk 0:00:29.7]} 36... Qb3 {[%clk 0:00:15]} 37. Nh5 {[%clk 0:00:28.9]}
37... Rc7 {[%clk 0:00:05.5]} 38. Nxf6+ {[%clk 0:00:29.4]} 38... Kf7 {[%clk
0:00:07.1]} 39. Nxd5 {[%clk 0:00:28.1]} 39... Rxd5 {[%clk 0:00:08.3]} 40. Qe2
{[%clk 0:00:24.8]} 40... Rcd7 {[%clk 0:00:07]} 41. Rf1 {[%clk 0:00:09.2]} 41...
Rxd4 {[%clk 0:00:04.3]} 42. f5 {[%clk 0:00:10.2]} 42... exf5 {[%clk 0:00:03.5]}
43. Bxf5 {[%clk 0:00:09.8]} 43... Re7 {[%clk 0:00:04.1]} 44. Be6+ {[%clk
0:00:09.5]} 44... Ke8 {[%clk 0:00:04]} 45. Rxf8+ {[%clk 0:00:10.3]} 45... Kxf8
{[%clk 0:00:04.9]} 46. Qf3+ {[%clk 0:00:11.5]} 46... Ke8 {[%clk 0:00:05.1]} 47.
Bxb3 {[%clk 0:00:12.2]} 47... Re1+ {[%clk 0:00:06.5]} 48. Kf2 {[%clk 0:00:12.7]}
1-0

[Event "*** Titled Tuesday Blitz AM"]
[Site "Chess.com"]
[Date "2020.01.07"]
[Round "6"]
[White "yy2324"]
[Black "nonscitis"]
[Result "0-1"]
[WhiteElo "2347"]
[BlackElo "2558"]
[TimeControl "180+2"]
[EndTime "10:19:55 PST"]
[Termination "nonscitis won by resignation"]

1. e4 {[%clk 0:03:01.8]} 1... c5 {[%clk 0:03:00.9]} 2. Nf3 {[%clk 0:03:02.8]}
2... Nc6 {[%clk 0:03:00.1]} 3. Nc3 {[%clk 0:03:03.7]} 3... e5 {[%clk 0:02:59.6]}
4. Bc4 {[%clk 0:03:04.5]} 4... d6 {[%clk 0:03:00.3]} 5. d3 {[%clk 0:03:04.3]}
5... Be7 {[%clk 0:03:01.1]} 6. Nd2 {[%clk 0:03:04.3]} 6... Be6 {[%clk
0:03:00.4]} 7. h3 {[%clk 0:03:00.1]} 7... Nf6 {[%clk 0:02:59.6]} 8. O-O {[%clk
0:03:01.2]} 8... O-O {[%clk 0:02:59.6]} 9. a4 {[%clk 0:03:01.9]} 9... Qd7 {[%clk
0:02:58.5]} 10. Re1 {[%clk 0:03:00.5]} 10... Rfe8 {[%clk 0:02:59]} 11. Nd5
{[%clk 0:02:56.4]} 11... Rac8 {[%clk 0:02:52.8]} 12. Nf1 {[%clk 0:02:53.9]}
12... Na5 {[%clk 0:02:50.1]} 13. Ng3 {[%clk 0:02:46.4]} 13... Nxc4 {[%clk
0:02:48.9]} 14. dxc4 {[%clk 0:02:47.3]} 14... Bxd5 {[%clk 0:02:50.2]} 15. cxd5
{[%clk 0:02:42.5]} 15... g6 {[%clk 0:02:51]} 16. c4 {[%clk 0:02:35.4]} 16... Bf8
{[%clk 0:02:48.1]} 17. Qd3 {[%clk 0:02:31.3]} 17... Bg7 {[%clk 0:02:48.4]} 18.
Bd2 {[%clk 0:02:32.4]} 18... h6 {[%clk 0:02:44.9]} 19. b4 {[%clk 0:02:27.9]}
19... cxb4 {[%clk 0:02:44.9]} 20. Bxb4 {[%clk 0:02:29.8]} 20... Qe7 {[%clk
0:02:46.1]} 21. Rec1 {[%clk 0:02:27.8]} 21... Nd7 {[%clk 0:02:46.5]} 22. Qd2
{[%clk 0:02:17.6]} 22... h5 {[%clk 0:02:44.3]} 23. a5 {[%clk 0:02:13]} 23... Kh7
{[%clk 0:02:44.2]} 24. Qe3 {[%clk 0:01:59.6]} 24... Bh6 {[%clk 0:02:41.3]} 25.
Qxa7 {[%clk 0:02:00.5]} 25... Bxc1 {[%clk 0:02:42.6]} 26. Rxc1 {[%clk
0:02:02.4]} 26... Nc5 {[%clk 0:02:41.4]} 27. Bxc5 {[%clk 0:01:50.8]} 27... Rxc5
{[%clk 0:02:40.5]} 28. Rb1 {[%clk 0:01:47.7]} 28... Rc7 {[%clk 0:02:30.8]} 29.
Rb6 {[%clk 0:01:44.3]} 29... Rec8 {[%clk 0:02:23.3]} 30. Ne2 {[%clk 0:01:44.4]}
30... Rxc4 {[%clk 0:02:23.8]} 31. Rxb7 {[%clk 0:01:45.4]} 31... R4c7 {[%clk
0:02:23.7]} 32. a6 {[%clk 0:01:46.5]} 32... Rxb7 {[%clk 0:02:14.8]} 33. axb7
{[%clk 0:01:30.4]} 33... Rc7 {[%clk 0:02:14.7]} 34. Qe3 {[%clk 0:00:25.8]} 34...
Rxb7 {[%clk 0:02:14.9]} 35. f4 {[%clk 0:00:16.4]} 35... exf4 {[%clk 0:02:13.5]}
36. Qxf4 {[%clk 0:00:18.3]} 36... Qe5 {[%clk 0:02:08.6]} 37. Qxe5 {[%clk
0:00:17.4]} 37... dxe5 {[%clk 0:02:10.5]} 38. Kf2 {[%clk 0:00:18.6]} 38... f5
{[%clk 0:02:06.7]} 39. Nc3 {[%clk 0:00:15.7]} 39... Rb2+ {[%clk 0:01:59.3]} 40.
Ke3 {[%clk 0:00:13.4]} 40... Rb3 {[%clk 0:02:00.1]} 41. Kd2 {[%clk 0:00:14.3]}
41... Kg7 {[%clk 0:01:52.4]} 42. Kc2 {[%clk 0:00:06.8]} 42... Rb4 {[%clk
0:01:52.5]} 43. Kd3 {[%clk 0:00:07.5]} 43... Rd4+ {[%clk 0:01:48.2]} 44. Ke3
{[%clk 0:00:08.6]} 44... fxe4 {[%clk 0:01:47.4]} 45. d6 {[%clk 0:00:07.4]} 45...
Rxd6 {[%clk 0:01:44.5]} 46. Kxe4 {[%clk 0:00:08.8]} 46... Rd2 {[%clk 0:01:41.4]}
47. g4 {[%clk 0:00:08.7]} 47... hxg4 {[%clk 0:01:40.7]} 48. hxg4 {[%clk
0:00:10.6]} 48... Rd4+ {[%clk 0:01:40.7]} 49. Kxe5 {[%clk 0:00:09.1]} 49... Rxg4
{[%clk 0:01:41.9]} 50. Ne4 {[%clk 0:00:10.5]} 50... Rg1 {[%clk 0:01:40.4]} 51.
Kf4 {[%clk 0:00:11.7]} 51... Kh6 {[%clk 0:01:36.6]} 52. Kf3 {[%clk 0:00:12.2]}
52... g5 {[%clk 0:01:35.3]} 53. Kf2 {[%clk 0:00:13.6]} 53... Ra1 {[%clk
0:01:35.3]} 54. Kg3 {[%clk 0:00:15.1]} 54... Kh5 {[%clk 0:01:34.9]} 55. Nf6+
{[%clk 0:00:16.1]} 55... Kg6 {[%clk 0:01:35.9]} 56. Ne4 {[%clk 0:00:17.6]} 56...
Ra3+ {[%clk 0:01:35.3]} 57. Kg2 {[%clk 0:00:17.8]} 57... Kf5 {[%clk 0:01:34]}
58. Ng3+ {[%clk 0:00:18.8]} 58... Kg4 {[%clk 0:01:34.3]} 59. Ne2 {[%clk
0:00:18.5]} 59... Ra2 {[%clk 0:01:35.3]} 60. Kf2 {[%clk 0:00:19.9]} 60... Kh3
{[%clk 0:01:32]} 61. Kf1 {[%clk 0:00:19.7]} 61... Rxe2 {[%clk 0:01:29.1]} 62.
Kxe2 {[%clk 0:00:21]} 62... Kg2 {[%clk 0:01:28.4]} 63. Ke1 {[%clk 0:00:21.3]}
63... g4 {[%clk 0:01:29.5]} 64. Ke2 {[%clk 0:00:22.9]} 64... g3 {[%clk
0:01:31.4]} 65. Ke1 {[%clk 0:00:24.4]} 65... Kh1 {[%clk 0:01:31.6]} 0-1

[Event "*** Titled Tuesday Blitz AM"]
[Site "Chess.com"]
[Date "2020.01.07"]
[Round "6"]
[White "1stSecond"]
[Black "AminMolaei"]
[Result "1-0"]
[WhiteElo "2825"]
[BlackElo "2570"]
[TimeControl "180+2"]
[EndTime "10:20:04 PST"]
[Termination "1stSecond won by resignation"]

1. Nf3 {[%clk 0:03:01.9]} 1... Nf6 {[%clk 0:02:59.4]} 2. g3 {[%clk 0:03:02]}
2... d5 {[%clk 0:03:00.6]} 3. Bg2 {[%clk 0:03:02.9]} 3... c6 {[%clk 0:03:01.5]}
4. O-O {[%clk 0:03:02.4]} 4... Bf5 {[%clk 0:03:02.8]} 5. d3 {[%clk 0:03:03]}
5... h6 {[%clk 0:03:03]} 6. c4 {[%clk 0:03:03.9]} 6... e6 {[%clk 0:03:04.2]} 7.
Nc3 {[%clk 0:03:04.8]} 7... Be7 {[%clk 0:03:04.9]} 8. cxd5 {[%clk 0:02:57.3]}
8... exd5 {[%clk 0:03:05.4]} 9. e4 {[%clk 0:02:40.7]} 9... dxe4 {[%clk
0:02:52.5]} 10. dxe4 {[%clk 0:02:39.3]} 10... Qxd1 {[%clk 0:02:22.1]} 11. Rxd1
{[%clk 0:02:41.2]} 11... Nxe4 {[%clk 0:01:50.8]} 12. Nd4 {[%clk 0:02:41.5]}
12... Nxc3 {[%clk 0:01:46.7]} 13. bxc3 {[%clk 0:02:43.4]} 13... Bd7 {[%clk
0:01:34.6]} 14. Re1 {[%clk 0:02:43]} 14... Kd8 {[%clk 0:01:29.7]} 15. Rb1 {[%clk
0:02:35.7]} 15... b6 {[%clk 0:01:16.3]} 16. Bf4 {[%clk 0:02:36.7]} 16... Bf6
{[%clk 0:01:17.4]} 17. Rbd1 {[%clk 0:02:32.6]} 17... Kc8 {[%clk 0:01:18.5]} 18.
Nb5 {[%clk 0:02:16.6]} 18... cxb5 {[%clk 0:00:58]} 19. Bxa8 {[%clk 0:02:18.5]}
19... Na6 {[%clk 0:00:52.7]} 20. Bb7+ {[%clk 0:01:58.6]} 20... Kxb7 {[%clk
0:00:48.3]} 21. Rxd7+ {[%clk 0:02:00.2]} 21... Kc6 {[%clk 0:00:44]} 22. Rxa7
{[%clk 0:01:59.5]} 22... Nc5 {[%clk 0:00:44.8]} 23. Rd1 {[%clk 0:01:59.3]} 23...
Ne6 {[%clk 0:00:40.7]} 24. Be3 {[%clk 0:01:35.5]} 24... Bxc3 {[%clk 0:00:29.2]}
25. Rad7 {[%clk 0:01:36.2]} 25... b4 {[%clk 0:00:14.7]} 26. R1d6+ {[%clk
0:01:36.1]} 26... Kb5 {[%clk 0:00:16]} 27. Rxb6+ {[%clk 0:01:37.7]} 27... Kc4
{[%clk 0:00:17.6]} 28. Rxf7 {[%clk 0:01:34.5]} 28... Re8 {[%clk 0:00:18.8]} 29.
h4 {[%clk 0:01:30.9]} 29... Kd3 {[%clk 0:00:19.5]} 30. Rd7+ {[%clk 0:01:28.6]}
30... Ke2 {[%clk 0:00:20.4]} 31. Kg2 {[%clk 0:01:29.9]} 31... Nf8 {[%clk
0:00:15.9]} 32. Rc7 {[%clk 0:01:17.8]} 32... Ne6 {[%clk 0:00:14]} 33. Rcc6
{[%clk 0:01:14.8]} 33... Nf8 {[%clk 0:00:08.8]} 34. a3 {[%clk 0:00:50.3]} 34...
Nd7 {[%clk 0:00:05.9]} 35. Re6 {[%clk 0:00:51.6]} 35... Rxe6 {[%clk 0:00:02.9]}
36. Rxe6 {[%clk 0:00:52.2]} 36... bxa3 {[%clk 0:00:03.4]} 37. Bc5+ {[%clk
0:00:53.2]} 37... Kd3 {[%clk 0:00:04.5]} 38. Bxa3 {[%clk 0:00:54.6]} 38... Kc4
{[%clk 0:00:05.7]} 39. h5 {[%clk 0:00:53.9]} 39... Nf6 {[%clk 0:00:07]} 40. Rc6+
{[%clk 0:00:49.5]} 40... Kd3 {[%clk 0:00:08.4]} 41. Rc5 {[%clk 0:00:49.4]} 41...
Bd4 {[%clk 0:00:09.9]} 42. Ra5 {[%clk 0:00:47.9]} 42... Ne4 {[%clk 0:00:11]} 43.
f3 {[%clk 0:00:47.3]} 43... Ng5 {[%clk 0:00:09.8]} 44. Be7 {[%clk 0:00:44.9]}
44... Ne6 {[%clk 0:00:10.1]} 45. Kh3 {[%clk 0:00:44.9]} 45... Bc3 {[%clk
0:00:06.6]} 46. Ra6 {[%clk 0:00:45.2]} 46... Nc7 {[%clk 0:00:07.6]} 47. Rd6+
{[%clk 0:00:43.5]} 47... Ke3 {[%clk 0:00:08.9]} 48. Rc6 {[%clk 0:00:41.3]} 48...
Nd5 {[%clk 0:00:09]} 49. Kg4 {[%clk 0:00:40.7]} 49... Be5 {[%clk 0:00:06.7]} 50.
Re6 {[%clk 0:00:33.8]} 50... Kd4 {[%clk 0:00:04.3]} 51. Bc5+ {[%clk 0:00:35.2]}
51... Kxc5 {[%clk 0:00:05.7]} 52. Rxe5 {[%clk 0:00:36.5]} 52... Kd6 {[%clk
0:00:07.6]} 53. Rxd5+ {[%clk 0:00:36.3]} 53... Kxd5 {[%clk 0:00:09.5]} 1-0

[Event "*** Titled Tuesday Blitz AM"]
[Site "Chess.com"]
[Date "2020.01.07"]
[Round "6"]
[White "StephenDedalus83"]
[Black "ShahMatKanal"]
[Result "1-0"]
[WhiteElo "2701"]
[BlackElo "2523"]
[TimeControl "180+2"]
[EndTime "10:20:05 PST"]
[Termination "StephenDedalus83 won by resignation"]

1. e4 {[%clk 0:03:01.9]} 1... c5 {[%clk 0:02:55.2]} 2. Nf3 {[%clk 0:03:02.6]}
2... Nc6 {[%clk 0:02:55.4]} 3. d4 {[%clk 0:03:04]} 3... cxd4 {[%clk 0:02:56.5]}
4. Nxd4 {[%clk 0:03:05.9]} 4... e5 {[%clk 0:02:57.8]} 5. Nf5 {[%clk 0:03:05.1]}
5... d6 {[%clk 0:02:53.7]} 6. Nc3 {[%clk 0:03:01]} 6... Be6 {[%clk 0:02:42.4]}
7. Ne3 {[%clk 0:02:58.2]} 7... Nf6 {[%clk 0:02:38.7]} 8. g3 {[%clk 0:02:59.2]}
8... Be7 {[%clk 0:02:38.1]} 9. Bg2 {[%clk 0:03:00.6]} 9... O-O {[%clk
0:02:36.7]} 10. O-O {[%clk 0:03:01.5]} 10... a6 {[%clk 0:02:28.6]} 11. Ncd5
{[%clk 0:03:02.2]} 11... Bxd5 {[%clk 0:02:16.8]} 12. Nxd5 {[%clk 0:03:01.9]}
12... Nxd5 {[%clk 0:02:16.1]} 13. Qxd5 {[%clk 0:03:00.9]} 13... Nd4 {[%clk
0:02:05.6]} 14. c3 {[%clk 0:03:01]} 14... Ne2+ {[%clk 0:02:05.4]} 15. Kh1 {[%clk
0:03:02]} 15... Nxc1 {[%clk 0:02:07.3]} 16. Raxc1 {[%clk 0:03:02.2]} 16... Qb6
{[%clk 0:02:03.3]} 17. Rc2 {[%clk 0:02:59.3]} 17... Qc6 {[%clk 0:01:54.5]} 18.
Rd1 {[%clk 0:02:56]} 18... Qxd5 {[%clk 0:01:54.3]} 19. Rxd5 {[%clk 0:02:56.4]}
19... Rfc8 {[%clk 0:01:51.5]} 20. Bh3 {[%clk 0:02:54.8]} 20... Rc7 {[%clk
0:01:51.2]} 21. f3 {[%clk 0:02:51.5]} 21... Kf8 {[%clk 0:01:51.5]} 22. Rcd2
{[%clk 0:02:50.4]} 22... Ke8 {[%clk 0:01:38.9]} 23. Bf1 {[%clk 0:02:46]} 23...
Rc5 {[%clk 0:01:34.4]} 24. R5d3 {[%clk 0:02:46]} 24... Rac8 {[%clk 0:01:34.3]}
25. h4 {[%clk 0:02:44.5]} 25... h5 {[%clk 0:01:34.3]} 26. Be2 {[%clk 0:02:45.2]}
26... g6 {[%clk 0:01:34.5]} 27. Bd1 {[%clk 0:02:45.8]} 27... Ra5 {[%clk
0:01:32.3]} 28. Bb3 {[%clk 0:02:45.5]} 28... Rac5 {[%clk 0:01:29.3]} 29. Bd5
{[%clk 0:02:46.1]} 29... R5c7 {[%clk 0:01:28.1]} 30. Kg2 {[%clk 0:02:45.8]}
30... Bf8 {[%clk 0:01:23.4]} 31. Kh3 {[%clk 0:02:45.9]} 31... f6 {[%clk
0:01:20.7]} 32. Rg2 {[%clk 0:02:34]} 32... Rh7 {[%clk 0:01:06.1]} 33. c4 {[%clk
0:02:33.2]} 33... Rcc7 {[%clk 0:01:05.9]} 34. Rb3 {[%clk 0:02:33.9]} 34... g5
{[%clk 0:01:01.3]} 35. Rb6 {[%clk 0:02:31.4]} 35... Rhg7 {[%clk 0:00:58.1]} 36.
Kh2 {[%clk 0:02:08.1]} 36... gxh4 {[%clk 0:00:53.2]} 37. gxh4 {[%clk 0:02:08.3]}
37... Rxg2+ {[%clk 0:00:55.1]} 38. Kxg2 {[%clk 0:02:09.2]} 38... Kd7 {[%clk
0:00:43.9]} 39. Rxb7 {[%clk 0:01:32.7]} 39... Rxb7 {[%clk 0:00:43.9]} 40. Bxb7
{[%clk 0:01:34.1]} 40... a5 {[%clk 0:00:45.1]} 41. Bd5 {[%clk 0:01:32.4]} 41...
Ke8 {[%clk 0:00:38.8]} 42. Kf2 {[%clk 0:01:25.8]} 42... Bh6 {[%clk 0:00:37.7]}
43. Ke2 {[%clk 0:01:20.6]} 43... Bf4 {[%clk 0:00:38]} 44. a3 {[%clk 0:01:17.5]}
44... Bc1 {[%clk 0:00:18.4]} 45. b4 {[%clk 0:01:18.2]} 45... a4 {[%clk
0:00:11.1]} 46. Bc6+ {[%clk 0:01:18.4]} 46... Ke7 {[%clk 0:00:12.5]} 47. Bxa4
{[%clk 0:01:19.3]} 47... Bxa3 {[%clk 0:00:14.4]} 48. b5 {[%clk 0:01:15.6]} 48...
Bc5 {[%clk 0:00:15.5]} 49. Bd1 {[%clk 0:01:16.3]} 49... Kf7 {[%clk 0:00:11.5]}
50. Kd3 {[%clk 0:01:17.1]} 50... Kg6 {[%clk 0:00:08.6]} 51. Be2 {[%clk 0:01:18]}
51... f5 {[%clk 0:00:07.6]} 52. Bf1 {[%clk 0:01:13.9]} 52... f4 {[%clk
0:00:06.4]} 53. Bh3 {[%clk 0:01:14.7]} 53... Bb6 {[%clk 0:00:05.3]} 54. Bd7
{[%clk 0:01:15]} 54... Kh6 {[%clk 0:00:03.4]} 55. Be8 {[%clk 0:01:15.7]} 55...
Bd8 {[%clk 0:00:03.9]} 56. c5 {[%clk 0:01:13.7]} 56... dxc5 {[%clk 0:00:03.3]}
57. Kc4 {[%clk 0:01:14.6]} 57... Bxh4 {[%clk 0:00:04.3]} 58. b6 {[%clk
0:01:14.9]} 58... Bd8 {[%clk 0:00:05.5]} 59. b7 {[%clk 0:01:15.7]} 59... Bc7
{[%clk 0:00:06.5]} 60. Kxc5 {[%clk 0:01:16.6]} 60... h4 {[%clk 0:00:06.2]} 61.
Bd7 {[%clk 0:01:17.4]} 61... Kg5 {[%clk 0:00:06.7]} 62. Kc6 {[%clk 0:01:18.4]}
62... h3 {[%clk 0:00:06.6]} 63. Bxh3 {[%clk 0:01:18.5]} 63... Bb8 {[%clk
0:00:07.9]} 64. Kd7 {[%clk 0:01:19.5]} 64... Kh4 {[%clk 0:00:09]} 65. Bg4 {[%clk
0:01:20.5]} 65... Kg3 {[%clk 0:00:09.8]} 66. Kc8 {[%clk 0:01:21.6]} 1-0

[Event "*** Titled Tuesday Blitz AM"]
[Site "Chess.com"]
[Date "2020.01.07"]
[Round "6"]
[White "mishanick"]
[Black "Duhless"]
[Result "0-1"]
[WhiteElo "2973"]
[BlackElo "3112"]
[TimeControl "180+2"]
[EndTime "10:20:21 PST"]
[Termination "Duhless won by resignation"]

1. d4 {[%clk 0:03:01.4]} 1... Nf6 {[%clk 0:03:00.1]} 2. c4 {[%clk 0:03:02.9]}
2... e6 {[%clk 0:03:01.2]} 3. Nf3 {[%clk 0:02:58.3]} 3... c5 {[%clk 0:03:01.6]}
4. d5 {[%clk 0:02:59.1]} 4... exd5 {[%clk 0:03:03.5]} 5. cxd5 {[%clk 0:03:01]}
5... d6 {[%clk 0:03:04.8]} 6. Nc3 {[%clk 0:03:02.1]} 6... g6 {[%clk 0:03:06.2]}
7. h3 {[%clk 0:03:03.8]} 7... Bg7 {[%clk 0:03:05.9]} 8. e4 {[%clk 0:03:05.2]}
8... a6 {[%clk 0:03:05.9]} 9. a4 {[%clk 0:03:06.4]} 9... Nh5 {[%clk 0:03:04.4]}
10. Bd3 {[%clk 0:03:05.6]} 10... Nd7 {[%clk 0:03:05.6]} 11. O-O {[%clk
0:03:05.6]} 11... Ne5 {[%clk 0:03:06.8]} 12. Be2 {[%clk 0:03:06.8]} 12... Nxf3+
{[%clk 0:03:07.8]} 13. Bxf3 {[%clk 0:03:08.7]} 13... Qh4 {[%clk 0:03:09.1]} 14.
Be3 {[%clk 0:03:04.6]} 14... Be5 {[%clk 0:03:08.8]} 15. Bg4 {[%clk 0:02:46]}
15... Bxg4 {[%clk 0:02:53.1]} 16. Qxg4 {[%clk 0:02:47.9]} 16... Qe7 {[%clk
0:02:53.9]} 17. Bg5 {[%clk 0:02:37]} 17... Qd7 {[%clk 0:02:52]} 18. a5 {[%clk
0:02:25.8]} 18... Qxg4 {[%clk 0:02:43.7]} 19. hxg4 {[%clk 0:02:27.7]} 19... Nf6
{[%clk 0:02:45.1]} 20. f3 {[%clk 0:02:28.5]} 20... h5 {[%clk 0:02:39.7]} 21.
Bxf6 {[%clk 0:02:16.3]} 21... Bxf6 {[%clk 0:02:38.6]} 22. gxh5 {[%clk
0:02:07.2]} 22... Bd4+ {[%clk 0:02:35.1]} 23. Kh2 {[%clk 0:02:08.5]} 23... Rxh5+
{[%clk 0:02:36.5]} 24. Kg3 {[%clk 0:02:10]} 24... Rg5+ {[%clk 0:02:36.2]} 25.
Kh3 {[%clk 0:02:10.9]} 25... Kd7 {[%clk 0:01:56.2]} 26. g4 {[%clk 0:02:12]}
26... f5 {[%clk 0:01:53]} 27. Ne2 {[%clk 0:01:06.1]} 27... fxg4+ {[%clk
0:01:46.8]} 28. fxg4 {[%clk 0:00:56.9]} 28... Rh8+ {[%clk 0:01:31.2]} 29. Kg3
{[%clk 0:00:57.5]} 29... Bxb2 {[%clk 0:01:31]} 30. Rab1 {[%clk 0:00:57.9]} 30...
Be5+ {[%clk 0:01:31.4]} 31. Nf4 {[%clk 0:00:55.7]} 31... Kc8 {[%clk 0:01:30.8]}
32. Rh1 {[%clk 0:00:47.7]} 32... Rf8 {[%clk 0:01:25.4]} 33. Rbf1 {[%clk
0:00:47.9]} 33... c4 {[%clk 0:01:20.5]} 34. Rh7 {[%clk 0:00:41]} 34... c3 {[%clk
0:01:12.8]} 35. Rf3 {[%clk 0:00:32.6]} 35... Rh5 {[%clk 0:00:27.5]} 36. gxh5
{[%clk 0:00:29.5]} 36... c2 {[%clk 0:00:27.8]} 37. Rc3+ {[%clk 0:00:07.1]} 37...
Bxc3 {[%clk 0:00:28.2]} 38. Nd3 {[%clk 0:00:07.4]} 38... gxh5 {[%clk 0:00:17.2]}
39. Rxh5 {[%clk 0:00:08.8]} 39... Rg8+ {[%clk 0:00:18.3]} 40. Kf2 {[%clk
0:00:09.4]} 40... Bxa5 {[%clk 0:00:16.7]} 41. Rh1 {[%clk 0:00:09.7]} 41... Kd7
{[%clk 0:00:15.5]} 42. Rc1 {[%clk 0:00:10.5]} 42... Rc8 {[%clk 0:00:15.9]} 43.
Ke2 {[%clk 0:00:11.3]} 43... Bd8 {[%clk 0:00:16.7]} 44. Ne1 {[%clk 0:00:11.7]}
44... Bg5 {[%clk 0:00:12.8]} 45. Rxc2 {[%clk 0:00:12.4]} 45... Rxc2+ {[%clk
0:00:14.3]} 46. Nxc2 {[%clk 0:00:14.3]} 46... Bf6 {[%clk 0:00:16]} 47. Kd3
{[%clk 0:00:14.5]} 47... Kc7 {[%clk 0:00:16.9]} 48. Nb4 {[%clk 0:00:14.5]} 48...
a5 {[%clk 0:00:16]} 49. Nc2 {[%clk 0:00:15.9]} 49... b5 {[%clk 0:00:17.4]} 50.
Ne3 {[%clk 0:00:17.3]} 50... Kb6 {[%clk 0:00:18.3]} 51. Ng4 {[%clk 0:00:18.6]}
51... Bg7 {[%clk 0:00:19.1]} 52. Ne3 {[%clk 0:00:19.6]} 52... a4 {[%clk
0:00:19.5]} 53. Nc2 {[%clk 0:00:20.6]} 53... Kc5 {[%clk 0:00:19.9]} 54. Ne3
{[%clk 0:00:21]} 54... Be5 {[%clk 0:00:20.1]} 55. Ng4 {[%clk 0:00:21.8]} 55...
Bh8 {[%clk 0:00:18.5]} 56. Nh6 {[%clk 0:00:22.6]} 56... a3 {[%clk 0:00:19.1]}
57. Kc2 {[%clk 0:00:24.1]} 57... a2 {[%clk 0:00:19.9]} 0-1